bitfinex-derivatives/quotes_BTCF0:USTF0_20210102
["timestamp","ask_amount","ask_price","bid_price","bid_amount"]
[1609598547929,0.32630158,31111.0,31110.0,0.18077997]
[1609598549332,0.14587,31111.0,31110.0,0.18077997]
[1609598551333,0.01342952,31120.0,31110.0,0.18077997]
[1609598551834,0.01342952,31120.0,31111.0,0.00034832]
[1609598552033,0.01342952,31120.0,31119.0,0.18043158]
[1609598552535,0.01342952,31120.0,31119.0,0.1807799]
[1609598553636,0.01382225,31120.0,31119.0,0.1807799]
[1609598554038,0.1938611,31120.0,31119.0,0.1807799]
[1609598554237,0.19425384,31120.0,31119.0,0.18043158]
[1609598554536,0.19425384,31120.0,31109.0,3.5926]
[1609598554737,0.36416384,31120.0,31119.0,0.0003483]
[1609598554938,0.00039274,31119.0,31110.0,0.0003483]
[1609598555739,0.3637711,31120.0,31110.0,0.0003483]
[1609598555940,0.3637711,31120.0,31119.0,0.18043158]
[1609598556341,0.36416382,31120.0,31119.0,0.18077988]
[1609598556542,0.3637711,31120.0,31119.0,0.18077988]
[1609598556743,0.3637711,31120.0,31119.0,1.18077988]
[1609598556942,0.36416382,31120.0,31119.0,1.18077988]
[1609598557143,0.35034158,31120.0,31119.0,1.18077988]
[1609598557843,0.35073434,31120.0,31119.0,1.18077988]
[1609598558944,0.35034158,31120.0,31119.0,1.18077988]
[1609598562650,0.16991,31120.0,31119.0,1.18077988]
[1609598563049,0.2961,31122.0,31119.0,1.18077988]
[1609598563250,0.45109,31122.0,31119.0,1.18077988]
[1609598563450,0.45109,31122.0,31120.0,0.00034785]
[1609598563852,0.45109,31122.0,31121.0,1.0]
[1609598564250,0.45109,31122.0,31121.0,1.00034785]
[1609598564453,0.45109,31122.0,31121.0,1.59344785]
[1609598569464,0.45109,31122.0,31121.0,1.00034785]
[1609598569861,0.45109,31122.0,31121.0,0.00034785]
[1609598570760,0.45109,31122.0,31121.0,4.63244785]
[1609598571863,0.45109,31122.0,31121.0,5.63244785]
[1609598573864,0.45109,31122.0,31121.0,4.63244785]
[1609598574966,0.45109,31122.0,31121.0,5.63244785]
[1609598575166,0.15055,31123.0,31121.0,1.00034785]
[1609598575368,0.15055,31123.0,31122.0,4.4676]
[1609598575568,0.15055,31123.0,31122.0,5.4676]
[1609598575768,0.15055,31123.0,31122.0,5.46794774]
[1609598576769,0.56582473,31135.0,31122.0,5.46794774]
[1609598577269,0.56582473,31135.0,31123.0,0.0003477]
[1609598578072,0.56582473,31135.0,31134.0,0.18043158]
[1609598578271,0.56582473,31135.0,31134.0,0.94043158]
[1609598578671,0.56582473,31135.0,31134.0,0.94077925]
[1609598579872,0.56582473,31135.0,31134.0,1.94077925]
[1609598580876,0.56582473,31135.0,31113.0,0.06575925]
[1609598581075,0.56582473,31135.0,31120.0,3.6827]
[1609598581275,0.70361473,31135.0,31120.0,3.6827]
[1609598581476,0.70361473,31135.0,31121.0,0.00034763]
[1609598582077,0.70361473,31135.0,31134.0,0.18043158]
[1609598582279,0.70361473,31135.0,31134.0,0.82083158]
[1609598582579,0.70361473,31135.0,31134.0,0.82117921]
[1609598583082,0.13779,31135.0,31134.0,0.82117921]
[1609598583480,0.13779,31135.0,31134.0,0.18077921]
[1609598583682,0.13779,31135.0,31134.0,0.18043158]
[1609598584881,1.13779,31135.0,31134.0,0.18043158]
[1609598585081,1.13779,31135.0,31126.0,3.8803]
[1609598585282,1.13779,31135.0,31113.0,2.01064431]
[1609598585481,0.00039259,31134.0,31115.0,5.19]
[1609598585683,0.00039259,31134.0,31116.0,0.00034772]
[1609598586182,0.00039259,31134.0,31129.0,0.18043158]
[1609598586583,0.00039259,31134.0,31130.0,0.00034774]
[1609598586783,0.13779,31135.0,31130.0,0.00034774]
[1609598587183,1.0,31138.0,31130.0,0.00034774]
[1609598587583,0.00039259,31137.0,31130.0,0.00034774]
[1609598587783,0.13089259,31137.0,31130.0,0.00034774]
[1609598587984,0.56649147,31133.0,31130.0,0.00034774]
[1609598588183,0.18043158,31132.0,31130.0,0.00034774]
[1609598589285,0.56649147,31133.0,31130.0,0.00034774]
[1609598589685,0.56649147,31133.0,31132.0,3.8222]
[1609598589887,0.56675129,31135.0,31132.0,4.8222]
[1609598590086,0.56675129,31135.0,31132.0,4.8225477]
[1609598590287,0.56675129,31135.0,31134.0,0.18043158]
[1609598590586,0.60039402,31137.0,31134.0,0.18043158]
[1609598590587,0.1305,31137.0,31134.0,0.18043158]
[1609598590785,0.1305,31137.0,31134.0,0.18077925]
[1609598590988,0.1305,31137.0,31135.0,0.00034767]
[1609598591787,0.1305,31137.0,31136.0,1.0]
[1609598592087,0.1305,31137.0,31136.0,1.00034767]
[1609598592891,0.56764963,31141.0,31136.0,1.00034767]
[1609598593092,0.56777362,31142.0,31136.0,1.00034767]
[1609598593388,0.56777362,31142.0,31137.0,0.00034767]
[1609598594092,0.00039251,31141.0,31137.0,0.00034767]
[1609598594292,0.00039251,31141.0,31135.0,0.00034767]
[1609598594491,0.00039251,31141.0,31138.0,0.00034767]
[1609598594902,0.00039251,31141.0,31136.0,0.00034767]
[1609598595097,0.00039251,31143.0,31139.0,0.00034767]
[1609598595297,0.00039251,31143.0,31133.0,4.9209]
[1609598595897,0.00039251,31143.0,31134.0,0.00034769]
[1609598596298,0.00039251,31143.0,31141.0,0.18043158]
[1609598596899,0.56817634,31143.0,31141.0,0.18043158]
[1609598597098,0.56817634,31143.0,31142.0,0.00034768]
[1609598597399,0.56778383,31143.0,31142.0,0.00034768]
[1609598597800,0.56817633,31143.0,31142.0,0.00034768]
[1609598598902,0.56817633,31143.0,31142.0,4.50164768]
[1609598599304,0.56817633,31143.0,31142.0,0.00034768]
[1609598602408,0.56778383,31143.0,31142.0,0.00034768]
[1609598602609,0.0003925,31143.0,31142.0,0.00034768]
[1609598603810,0.0003925,31143.0,31142.0,0.01064768]
[1609598605111,0.56728834,31143.0,31142.0,0.01064768]
[1609598607213,1.7167298,31143.0,31142.0,0.01064768]
[1609598610114,2.7167298,31143.0,31142.0,0.01064768]
[1609598611115,1.7167298,31143.0,31142.0,0.01064768]
[1609598611617,0.56728834,31143.0,31142.0,0.01064768]
[1609598612018,1.56728834,31143.0,31142.0,0.01064768]
[1609598612518,2.56728834,31143.0,31142.0,0.01064768]
[1609598614520,1.56728834,31143.0,31142.0,0.01064768]
[1609598616831,1.56728834,31143.0,31142.0,1.01064768]
[1609598617029,2.72002092,31143.0,31142.0,1.01064768]
[1609598619831,1.72002092,31143.0,31142.0,1.01064768]
[1609598620231,1.72002092,31143.0,31142.0,6.24284768]
[1609598623334,1.72002092,31143.0,31142.0,1.01064768]
[1609598623537,0.56728834,31143.0,31142.0,1.01064768]
[1609598625336,1.56728834,31143.0,31142.0,1.01064768]
[1609598625836,2.72948609,31143.0,31142.0,1.01064768]
[1609598626539,1.72948609,31143.0,31142.0,1.01064768]
[1609598628542,2.57535023,31143.0,31142.0,1.01064768]
[1609598628741,2.57535023,31143.0,31142.0,0.01043106]
[1609598630947,1.57535023,31143.0,31142.0,0.01043106]
[1609598632248,0.57535023,31143.0,31142.0,0.01043106]
[1609598633851,1.57535023,31143.0,31142.0,0.01043106]
[1609598636557,1.57535023,31143.0,31142.0,0.66583106]
[1609598637756,1.0,31143.0,31142.0,0.66583106]
[1609598637956,0.2735,31144.0,31142.0,0.66583106]
[1609598638355,0.2735,31144.0,31143.0,0.18043158]
[1609598638556,0.2735,31144.0,31143.0,0.18077941]
[1609598638756,0.27389251,31144.0,31143.0,0.18077941]
[1609598645760,0.27389251,31144.0,31143.0,5.50547941]
[1609598652872,0.27389251,31144.0,31143.0,3.51547941]
[1609598653274,0.00039251,31144.0,31143.0,3.51547941]
[1609598653877,0.00039251,31144.0,31143.0,4.51547941]
[1609598654279,0.16413,31145.0,31143.0,1.0]
[1609598654478,0.16413,31145.0,31144.0,0.18043158]
[1609598654679,0.16217322,31145.0,31144.0,0.18077924]
[1609598654978,0.16256559,31145.0,31144.0,0.18077924]
[1609598656480,0.00039237,31145.0,31144.0,0.18077924]
[1609598656680,0.13609,31152.0,31144.0,0.18077924]
[1609598657083,0.00039235,31151.0,31150.0,4.4582]
[1609598657684,0.00039235,31151.0,31150.0,4.45854764]
[1609598658489,0.00039235,31151.0,31150.0,4.63897922]
[1609598659688,0.13609,31152.0,31150.0,4.63897922]
[1609598660089,0.13609,31152.0,31151.0,0.00034761]
[1609598661891,0.13609,31152.0,31151.0,1.00034761]
[1609598662492,0.13609,31152.0,31151.0,1.0003476]
[1609598663394,0.10609,31152.0,31151.0,1.0003476]
[1609598663599,0.2814,31161.0,31151.0,1.0003476]
[1609598663994,0.2814,31161.0,31160.0,4.8462]
[1609598664597,0.2814,31161.0,31160.0,5.02663158]
[1609598669606,0.45376,31161.0,31160.0,5.02663158]
[1609598671111,0.17236,31161.0,31160.0,5.02663158]
[1609598671512,0.17236,31161.0,31160.0,5.02697909]
[1609598671911,0.17236,31161.0,31160.0,6.02697909]
[1609598672311,1.4337242,31175.0,31160.0,1.18077909]
[1609598672511,1.4337242,31175.0,31174.0,0.18043158]
[1609598672711,1.4337242,31175.0,31174.0,5.38533158]
[1609598673913,0.4337242,31175.0,31174.0,5.38533158]
[1609598674116,0.4337242,31175.0,31174.0,5.38567894]
[1609598674316,0.4337242,31175.0,31174.0,5.38533158]
[1609598676817,1.35853899,31188.0,31174.0,3.38533158]
[1609598677018,0.96956549,31184.0,31174.0,3.38533158]
[1609598678317,0.96956549,31184.0,31175.0,0.4337242]
[1609598678517,0.96956549,31184.0,31183.0,0.18043158]
[1609598679122,1.53774572,31193.0,31183.0,0.18043158]
[1609598679123,0.18043158,31193.0,31183.0,0.18043158]
[1609598679319,0.18043158,31193.0,31187.0,3.896]
[1609598679518,0.18043158,31193.0,31183.0,0.18043158]
[1609598679720,0.34705158,31193.0,31190.0,3.6623]
[1609598680722,0.34705158,31193.0,31192.0,0.18043158]
[1609598682724,0.16662,31193.0,31192.0,0.18043158]
[1609598683524,0.18043158,31194.0,31192.0,0.18043158]
[1609598683924,1.18043158,31194.0,31192.0,0.18043158]
[1609598684526,1.18043158,31194.0,31192.0,0.75283158]
[1609598684925,1.18043158,31194.0,31192.0,0.5724]
[1609598685627,0.00039193,31193.0,31192.0,0.5724]
[1609598686029,1.00039193,31193.0,31192.0,0.5724]
[1609598686629,1.00039193,31193.0,31192.0,0.75283158]
[1609598689834,0.00039193,31193.0,31192.0,0.75283158]
[1609598691736,3.35410351,31208.0,31192.0,0.73283158]
[1609598691938,1.0,31193.0,31192.0,0.73283158]
[1609598692138,0.00039188,31207.0,31192.0,0.73283158]
[1609598692338,0.00039186,31193.0,31192.0,0.73283158]
[1609598692538,0.00039186,31206.0,31192.0,0.73283158]
[1609598692737,0.00039186,31206.0,31199.0,0.18043158]
[1609598692939,0.00039186,31208.0,31199.0,0.18043158]
[1609598693139,0.00039186,31205.0,31199.0,0.18043158]
[1609598693341,0.16634,31205.0,31199.0,0.18043158]
[1609598693739,0.00039186,31204.0,31199.0,0.18043158]
[1609598694139,1.0,31203.0,31199.0,0.18043158]
[1609598694739,0.18043158,31200.0,31199.0,0.18043158]
[1609598695241,0.18082344,31200.0,31199.0,0.18043158]
[1609598699650,0.18082344,31200.0,31188.0,5.2719]
[1609598700050,0.20868556,31200.0,31188.0,5.2719]
[1609598700248,1.0,31192.0,31188.0,5.2719]
[1609598700850,0.0003919,31191.0,31188.0,3.45233158]
[1609598702351,0.02825349,31191.0,31188.0,3.45233158]
[1609598702653,0.028253,31193.0,31188.0,3.45233158]
[1609598702851,0.028253,31193.0,31190.0,0.18043158]
[1609598703052,1.0,31194.0,31190.0,0.18043158]
[1609598703252,0.00039187,31192.0,31190.0,0.18043158]
[1609598703452,0.02825236,31193.0,31190.0,0.18043158]
[1609598703852,0.00039187,31191.0,31190.0,0.18043158]
[1609598704053,0.00039187,31192.0,31190.0,0.18043158]
[1609598704255,0.00039187,31191.0,31190.0,0.18043158]
[1609598704756,0.02825337,31195.0,31190.0,0.18043158]
[1609598706260,1.02825337,31195.0,31190.0,0.18043158]
[1609598706660,0.02825721,31194.0,31190.0,0.18043158]
[1609598706861,0.18043158,31191.0,31190.0,0.18043158]
[1609598707161,0.20868883,31191.0,31190.0,0.18043158]
[1609598707962,0.2082969,31191.0,31190.0,0.18043158]
[1609598708161,2.2082969,31191.0,31180.0,0.15174]
[1609598708361,2.2082969,31191.0,31177.0,4.7053]
[1609598708562,0.02825921,31190.0,31177.0,4.7053]
[1609598708763,0.02825921,31190.0,31180.0,0.18043158]
[1609598708963,0.02825921,31190.0,31180.0,0.33554158]
[1609598710363,1.02825921,31190.0,31180.0,0.33554158]
[1609598710764,0.18043158,31181.0,31180.0,0.15511]
[1609598710963,0.18043158,31181.0,31177.0,4.7053]
[1609598711164,1.0,31180.0,31165.0,1.0]
[1609598711364,1.0282648,31180.0,31166.0,4.2107]
[1609598711765,0.00039205,31179.0,31174.0,0.00034751]
[1609598711966,0.00039205,31179.0,31167.0,0.00034751]
[1609598712167,1.0,31177.0,31167.0,0.00034751]
[1609598712366,1.0,31177.0,31175.0,0.00034751]
[1609598712567,0.99960795,31177.0,31168.0,0.00034751]
[1609598712766,0.99960795,31177.0,31176.0,0.18043158]
[1609598712966,1.0,31180.0,31176.0,0.18043158]
[1609598713366,0.00039205,31177.0,31176.0,0.18077909]
[1609598713568,0.00039205,31179.0,31177.0,0.00034751]
[1609598713767,1.0,31180.0,31176.0,0.18077909]
[1609598713968,1.0,31179.0,31176.0,0.18077909]
[1609598714167,1.00039204,31179.0,31177.0,0.00034751]
[1609598714367,0.00039204,31178.0,31177.0,0.00034751]
[1609598714870,0.18082362,31178.0,31176.0,0.18043158]
[1609598715070,1.18082362,31178.0,31176.0,0.18043158]
[1609598715469,0.00039204,31177.0,31176.0,0.18043158]
[1609598716069,0.00039204,31177.0,31176.0,0.18077908]
[1609598716774,1.00039204,31177.0,31176.0,0.18077908]
[1609598716974,2.00039204,31177.0,31176.0,0.0003475]
[1609598717574,2.00039204,31177.0,31164.0,0.14835]
[1609598717575,2.00039204,31177.0,31165.0,0.0003475]
[1609598717776,2.00039205,31177.0,31164.0,0.14835]
[1609598717975,2.00039205,31177.0,31161.0,4.6368]
[1609598718174,0.00039205,31176.0,31166.0,0.00034751]
[1609598718374,0.00039205,31176.0,31162.0,0.00034751]
[1609598718575,0.00039205,31176.0,31167.0,0.00034751]
[1609598718775,2.293,31177.0,31167.0,0.00034751]
[1609598718977,0.00039208,31175.0,31171.0,0.18043158]
[1609598719379,1.00039208,31176.0,31172.0,0.00034755]
[1609598719675,0.0003921,31174.0,31172.0,0.00034755]
[1609598719875,0.0003921,31175.0,31172.0,0.00034755]
[1609598720676,0.0003921,31175.0,31173.0,0.00034755]
[1609598720977,1.0,31173.0,31172.0,0.00034755]
[1609598721177,2.0,31173.0,31171.0,0.18043158]
[1609598721579,2.0003921,31173.0,31172.0,0.00034756]
[1609598721878,2.0,31173.0,31172.0,0.00034756]
[1609598722079,2.0003921,31173.0,31172.0,0.00034756]
[1609598722380,1.0003921,31173.0,31172.0,0.00034756]
[1609598722580,1.0003921,31173.0,31171.0,0.18043158]
[1609598722780,1.0,31173.0,31171.0,0.18043158]
[1609598723181,1.0,31173.0,31172.0,0.00034754]
[1609598723984,2.0,31173.0,31172.0,0.00034754]
[1609598724185,2.0003921,31173.0,31172.0,0.00034754]
[1609598724781,0.0003921,31173.0,31172.0,0.00034754]
[1609598725585,0.18043158,31174.0,31172.0,0.00034754]
[1609598726187,0.18043158,31174.0,31171.0,0.18043158]
[1609598726387,0.18043158,31174.0,31173.0,0.00034755]
[1609598726888,0.1784763,31174.0,31172.0,0.00034755]
[1609598727088,1.1784763,31174.0,31173.0,0.00034755]
[1609598727589,1.1784763,31174.0,31172.0,0.00034755]
[1609598727889,1.1784763,31174.0,31173.0,0.00034755]
[1609598728491,1.1784763,31174.0,31172.0,0.00034755]
[1609598728691,1.1784763,31174.0,31173.0,0.00034755]
[1609598729293,1.1784763,31174.0,31172.0,0.00034755]
[1609598729492,1.1784763,31174.0,31173.0,0.00034752]
[1609598729994,1.7289763,31174.0,31172.0,0.00034752]
[1609598730193,2.1784763,31174.0,31173.0,0.00034752]
[1609598730596,6.7438763,31174.0,31173.0,0.00034752]
[1609598730793,6.74426843,31174.0,31168.0,0.00034758]
[1609598730994,0.18043158,31169.0,31167.0,0.13273]
[1609598731395,0.18043158,31169.0,31157.0,2.25040974]
[1609598731396,0.99965241,31168.0,31161.0,1.90732938]
[1609598732196,4.0131,31163.0,31162.0,0.0003476]
[1609598732596,4.0131,31163.0,31158.0,0.0003476]
[1609598732896,4.0131,31163.0,31162.0,0.00034762]
[1609598733098,1.0,31159.0,31156.0,1.07223465]
[1609598733398,1.0,31159.0,31157.0,0.00034759]
[1609598734800,0.00039224,31158.0,31152.0,0.00034762]
[1609598734999,0.18043158,31153.0,31151.0,0.29433158]
[1609598735400,0.18043158,31153.0,31152.0,0.00034762]
[1609598736905,0.17847528,31153.0,31152.0,0.00034762]
[1609598737103,0.17847528,31153.0,31145.0,2.8590792]
[1609598737305,0.17847528,31153.0,31149.0,0.1598]
[1609598737704,0.17847528,31153.0,31150.0,0.00034761]
[1609598738204,1.0,31154.0,31150.0,0.03822709]
[1609598738403,0.8062,31154.0,31150.0,0.03822709]
[1609598738704,0.2874,31166.0,31153.0,1.0]
[1609598739105,0.2874,31166.0,31164.0,0.18043158]
[1609598739606,0.2874,31166.0,31165.0,0.00034749]
[1609598740006,0.2874,31166.0,31165.0,0.0003475]
[1609598740405,0.2874,31166.0,31156.0,0.0003475]
[1609598740605,0.2874,31166.0,31165.0,0.0003475]
[1609598740805,0.2874,31166.0,31157.0,0.00034746]
[1609598741006,0.46783158,31166.0,31165.0,0.18043158]
[1609598741206,0.46783158,31166.0,31165.0,0.18077902]
[1609598742507,0.85352587,31176.0,31165.0,0.76187902]
[1609598742707,0.85352587,31176.0,31166.0,0.00035002]
[1609598742907,0.85352587,31176.0,31168.0,4.2842]
[1609598743107,0.85352587,31176.0,31171.0,0.18043158]
[1609598743508,0.60199104,31172.0,31171.0,0.18078158]
[1609598743708,0.60159902,31172.0,31171.0,0.18078158]
[1609598743909,0.60093543,31173.0,31171.0,0.18078158]
[1609598744308,0.60093543,31173.0,31172.0,0.00034998]
[1609598745111,0.78136701,31173.0,31172.0,0.00034998]
[1609598745411,0.78175904,31173.0,31172.0,0.00034998]
[1609598746114,0.20038985,31173.0,31172.0,0.00034998]
[1609598746314,0.18082361,31173.0,31172.0,0.00034998]
[1609598746715,0.18043158,31173.0,31172.0,0.00034998]
[1609598747718,0.18043158,31173.0,31165.0,0.00035002]
[1609598748718,0.18043158,31173.0,31172.0,1.0]
[1609598748919,3.42547649,31186.0,31172.0,1.0]
[1609598749122,0.60081703,31191.0,31176.0,0.18043158]
[1609598749319,1.0,31183.0,31176.0,0.18043158]
[1609598749720,1.13511,31183.0,31177.0,0.00035002]
[1609598749920,0.00039204,31182.0,31177.0,0.00035002]
[1609598751029,0.18043158,31178.0,31177.0,0.00035002]
[1609598751432,0.13511,31183.0,31177.0,0.00035002]
[1609598751825,0.00039197,31181.0,31177.0,0.00035002]
[1609598752027,0.00039197,31182.0,31177.0,0.00035002]
[1609598752226,0.00039197,31180.0,31177.0,0.00035002]
[1609598752526,0.00039197,31182.0,31177.0,0.00035002]
[1609598752728,0.13511,31183.0,31177.0,0.00035002]
[1609598753027,0.00039196,31181.0,31177.0,0.00035002]
[1609598753227,0.00039196,31181.0,31180.0,0.18043158]
[1609598753428,0.18082354,31182.0,31180.0,0.18043158]
[1609598753630,0.00039196,31181.0,31180.0,0.18078151]
[1609598753829,0.00039196,31181.0,31180.0,0.18043158]
[1609598754229,0.00039194,31182.0,31180.0,5.47568151]
[1609598754429,0.13511,31183.0,31180.0,5.47568151]
[1609598754630,0.01956142,31190.0,31181.0,0.00034991]
[1609598755031,0.16517188,31189.0,31184.0,5.0377]
[1609598755230,0.16517188,31189.0,31188.0,0.18043158]
[1609598755432,0.16478,31189.0,31188.0,1.18078142]
[1609598755831,0.16478,31189.0,31188.0,5.22818142]
[1609598756633,0.00987593,31193.0,31188.0,5.22818142]
[1609598757032,0.00987593,31193.0,31189.0,0.0003498]
[1609598757232,0.00987593,31193.0,31192.0,6.18043158]
[1609598757432,0.00987593,31193.0,31192.0,7.18043158]
[1609598757632,0.00987593,31193.0,31192.0,7.18078138]
[1609598758136,0.17621741,31205.0,31192.0,7.18078138]
[1609598758333,0.17621741,31205.0,31192.0,6.18078138]
[1609598758735,0.17621741,31205.0,31193.0,0.00034976]
[1609598758935,0.17621741,31205.0,31192.0,6.18043158]
[1609598759136,0.17621741,31205.0,31204.0,0.18043158]
[1609598759336,0.16634,31205.0,31204.0,0.18043158]
[1609598759734,0.18043158,31206.0,31204.0,0.18043158]
[1609598760835,0.18043158,31206.0,31189.0,0.18043158]
[1609598761238,0.32886158,31206.0,31205.0,0.18043158]
[1609598763239,0.32886158,31206.0,31205.0,1.18043158]
[1609598765242,0.32886158,31206.0,31205.0,0.18043158]
[1609598772758,0.32886158,31206.0,31205.0,1.18043158]
[1609598780975,0.32925324,31206.0,31205.0,1.18043158]
[1609598781177,0.14882166,31206.0,31205.0,2.18043158]
[1609598781377,0.14843,31206.0,31205.0,2.18043158]
[1609598781777,0.14882166,31206.0,31205.0,2.18043158]
[1609598782779,0.14882166,31206.0,31205.0,2.18078127]
[1609598785280,0.14882166,31206.0,31205.0,1.18078127]
[1609598786480,1.0761893,31239.0,31205.0,1.18078127]
[1609598786680,1.0761893,31239.0,31217.0,4.0549]
[1609598787080,0.00039156,31225.0,31217.0,4.0549]
[1609598787281,0.12257156,31225.0,31224.0,0.18043158]
[1609598787485,0.12257156,31225.0,31224.0,0.71803158]
[1609598788588,0.12257156,31225.0,31224.0,0.71838112]
[1609598789187,0.12257156,31225.0,31224.0,1.71803158]
[1609598795192,0.12257156,31225.0,31224.0,0.71803158]
[1609598796990,0.12257156,31225.0,31217.0,0.12044]
[1609598797190,0.12257156,31225.0,31224.0,6.0]
[1609598797391,0.12218,31225.0,31224.0,6.18043158]
[1609598797792,0.14336,31235.0,31224.0,6.18043158]
[1609598798392,0.00039139,31234.0,31224.0,6.18043158]
[1609598799193,0.00039139,31234.0,31224.0,0.18043158]
[1609598799392,0.18082297,31234.0,31233.0,0.18043158]
[1609598800293,0.00039139,31234.0,31233.0,0.18043158]
[1609598801294,0.00039139,31234.0,31233.0,1.18043158]
[1609598803297,0.00039139,31234.0,31233.0,0.18043158]
[1609598803998,0.14336,31235.0,31233.0,0.18043158]
[1609598804200,0.18043158,31241.0,31233.0,0.18043158]
[1609598804600,0.00039138,31240.0,31233.0,0.18043158]
[1609598805101,0.13262138,31240.0,31233.0,0.18043158]
[1609598805299,0.13262138,31240.0,31230.0,4.3552]
[1609598805300,0.13262138,31240.0,31239.0,0.18043158]
[1609598805603,0.13223,31240.0,31239.0,0.18043158]
[1609598805801,0.13262137,31240.0,31239.0,0.18043158]
[1609598807306,0.13262137,31240.0,31239.0,1.18043158]
[1609598808606,0.13262137,31240.0,31239.0,2.18043158]
[1609598809206,0.13262137,31240.0,31239.0,1.18043158]
[1609598810608,0.13262132,31240.0,31239.0,1.18043158]
[1609598811209,0.13262132,31240.0,31239.0,2.18043158]
[1609598813008,0.13262132,31240.0,31239.0,2.21043158]
[1609598813208,0.13262132,31240.0,31239.0,1.21043158]
[1609598813408,0.3130529,31240.0,31239.0,1.21043158]
[1609598815217,0.3130529,31240.0,31239.0,2.21043158]
[1609598815418,0.3130529,31240.0,31239.0,2.03]
[1609598817215,0.3130529,31240.0,31239.0,1.03]
[1609598818314,0.65842132,31240.0,31239.0,1.03]
[1609598819217,1.65842132,31240.0,31239.0,1.03]
[1609598819417,1.8388529,31240.0,31239.0,1.03]
[1609598821320,0.8388529,31240.0,31239.0,1.03]
[1609598823921,0.85226276,31248.0,31239.0,1.03]
[1609598824324,1.0,31245.0,31239.0,1.03]
[1609598824722,0.00039139,31244.0,31239.0,1.03]
[1609598825425,0.18043158,31240.0,31239.0,1.03]
[1609598825725,0.18082297,31240.0,31239.0,1.03]
[1609598831536,0.18082297,31240.0,31239.0,1.21043158]
[1609598832838,0.18082297,31240.0,31239.0,0.21043158]
[1609598833139,0.18082297,31240.0,31231.0,1.0]
[1609598833439,0.00039136,31239.0,31235.0,0.1807811]
[1609598833740,0.00039136,31239.0,31235.0,0.18043158]
[1609598834040,0.00039136,31244.0,31236.0,0.00034952]
[1609598834241,0.00039134,31238.0,31236.0,0.00034952]
[1609598834443,0.15759134,31238.0,31237.0,1.0]
[1609598834641,0.1572,31238.0,31237.0,1.0]
[1609598834842,0.15759134,31238.0,31237.0,1.0003495]
[1609598835543,0.33802292,31238.0,31237.0,1.0003495]
[1609598836346,0.33802292,31238.0,31237.0,0.0003495]
[1609598836745,0.33802292,31238.0,31225.0,0.0003495]
[1609598836947,0.33802292,31238.0,31237.0,0.0003495]
[1609598837147,0.33763158,31238.0,31226.0,0.0003495]
[1609598837446,0.15759135,31238.0,31237.0,0.0003495]
[1609598837747,0.15759135,31238.0,31234.0,0.0003495]
[1609598837946,0.15759135,31238.0,31237.0,0.0003495]
[1609598838247,0.1572,31238.0,31235.0,0.00034952]
[1609598838448,0.1572,31238.0,31237.0,0.00034952]
[1609598838649,0.15759136,31238.0,31237.0,0.00034952]
[1609598838849,0.1572,31238.0,31236.0,0.00034952]
[1609598839150,0.15759136,31238.0,31237.0,0.00034952]
[1609598839349,0.1572,31238.0,31237.0,0.00034952]
[1609598839552,0.18082294,31238.0,31234.0,0.00034952]
[1609598839749,0.28785294,31238.0,31234.0,0.00034952]
[1609598839952,0.00039136,31237.0,31234.0,0.00034952]
[1609598842253,0.00039136,31236.0,31234.0,0.00034952]
[1609598842754,0.00039136,31237.0,31234.0,0.00034952]
[1609598843256,0.00039136,31236.0,31234.0,0.00034952]
[1609598843557,0.00039136,31237.0,31234.0,0.00034952]
[1609598843758,0.00039137,31235.0,31234.0,0.00034952]
[1609598844058,0.00039137,31236.0,31234.0,0.00034952]
[1609598844459,0.00039131,31235.0,31234.0,0.00034952]
[1609598844860,0.00039131,31237.0,31234.0,0.00034952]
[1609598847767,0.28746158,31238.0,31234.0,0.00034952]
[1609598849970,0.28746158,31238.0,31236.0,4.0586]
[1609598850568,0.28746158,31238.0,31237.0,0.00034948]
[1609598850968,0.28785285,31238.0,31237.0,0.00034948]
[1609598851468,0.28785285,31238.0,31237.0,0.18078106]
[1609598852372,0.28785285,31238.0,31237.0,1.18078106]
[1609598854372,0.28785285,31238.0,31237.0,0.00034948]
[1609598854773,0.28785285,31238.0,31230.0,0.0003495]
[1609598854973,0.28785285,31238.0,31237.0,0.0003495]
[1609598855173,0.28746158,31238.0,31236.0,5.1859]
[1609598855575,0.28785286,31238.0,31237.0,0.18078106]
[1609598855774,0.28746158,31238.0,31237.0,0.18078106]
[1609598855976,0.28785284,31238.0,31237.0,0.18078106]
[1609598856376,0.28785284,31238.0,31237.0,1.18078106]
[1609598857377,0.10742126,31238.0,31237.0,1.18078106]
[1609598860178,0.10703,31238.0,31237.0,1.18078106]
[1609598860379,0.10742123,31238.0,31237.0,0.18078106]
[1609598862483,0.10547059,31238.0,31237.0,0.18078106]
[1609598864284,0.10547059,31238.0,31237.0,1.18078106]
[1609598864784,0.08547059,31238.0,31237.0,1.18078106]
[1609598866286,0.08547059,31238.0,31237.0,0.18078106]
[1609598868287,0.08507936,31238.0,31237.0,0.18078106]
[1609598868489,0.08507936,31238.0,31237.0,1.18078106]
[1609598868888,0.18043158,31239.0,31237.0,1.18078106]
[1609598869489,0.18043158,31239.0,31238.0,0.00035193]
[1609598870191,0.1808228,31239.0,31238.0,0.00035193]
[1609598870393,0.1808228,31239.0,31238.0,1.00035193]
[1609598870593,0.00039122,31239.0,31238.0,1.68745193]
[1609598870995,0.00039122,31244.0,31238.0,1.68745193]
[1609598871193,0.17023,31245.0,31238.0,1.68745193]
[1609598871394,0.0003912,31243.0,31239.0,0.00035193]
[1609598871594,0.0003912,31243.0,31242.0,0.18043158]
[1609598871793,0.15498,31243.0,31242.0,0.18043158]
[1609598872195,0.15537119,31243.0,31242.0,0.18078349]
[1609598872399,0.15537119,31243.0,31242.0,1.18078349]
[1609598873597,0.33580277,31243.0,31242.0,1.18078349]
[1609598874198,0.15537119,31243.0,31242.0,1.18078349]
[1609598874997,0.15537119,31243.0,31242.0,1.17078349]
[1609598875599,0.33580277,31243.0,31242.0,1.17078349]
[1609598876399,0.33580277,31243.0,31242.0,0.17078349]
[1609598876800,0.33580277,31243.0,31242.0,0.00035191]
[1609598877000,0.3358028,31243.0,31242.0,0.00035191]
[1609598877602,0.33385198,31243.0,31242.0,0.18043158]
[1609598877802,0.33385198,31243.0,31242.0,0.1807835]
[1609598878602,0.33385198,31243.0,31242.0,0.1707835]
[1609598880604,0.33385198,31243.0,31242.0,0.1607835]
[1609598884412,0.33385198,31243.0,31242.0,1.1607835]
[1609598886412,0.33385198,31243.0,31242.0,0.1607835]
[1609598889415,0.33190128,31243.0,31242.0,0.1607835]
[1609598890417,0.33190128,31243.0,31242.0,1.1607835]
[1609598891918,0.35180128,31243.0,31242.0,1.00035192]
[1609598892320,0.35180128,31243.0,31242.0,0.00035192]
[1609598892720,0.35180128,31243.0,31234.0,1.92752523]
[1609598892920,1.35180128,31243.0,31242.0,0.00035195]